bitfinex-derivatives/quotes_SOLF0:USTF0_20251126
["timestamp","ask_amount","ask_price","bid_price","bid_amount"]
[1764174480791,0.05453437,137.85,137.83,0.05444964]
[1764174480792,0.04732689,137.85,137.83,0.05444964]
[1764174483588,0.04732689,137.85,137.73,133.6640748]
[1764174483788,6.5319,137.84,137.77,6.5347]
[1764174484391,101.5999,137.85,137.75,6.5356]
[1764174484690,0.05217887,137.81,137.79,0.05511801]
[1764174489985,106.62372,137.92,137.8,101.6338]
[1764174490189,5.07472,137.92,137.8,101.6319]
[1764174490497,5.07472,137.92,137.82,6.5322]
[1764174490498,6.5289,137.9,137.82,6.5322]
[1764174490696,5.07472,137.92,137.82,6.5322]
[1764174490895,6.5294,137.89,137.82,6.5322]
[1764174491094,0.05436244,137.88,137.86,0.04963546]
[1764174491397,0.05436244,137.88,137.86,0.05398286]
[1764174492091,6.5303,137.87,137.86,0.05398286]
[1764174493991,7.9903,137.87,137.86,0.05398286]
[1764174494189,101.5935,137.86,137.74,6.536]
[1764174494399,113.81203235,137.87,137.73,8.85661754]
[1764174494600,6.5332,137.81,137.72,8.85661754]
[1764174494793,101.6208,137.82,137.71,13.64]
[1764174495197,0.05237663,137.78,137.75,0.04917285]
[1764174496899,6.58697663,137.78,137.75,0.04917285]
[1764174502304,0.05237663,137.78,137.75,0.04917285]
[1764174502613,6.74678933,137.88,137.75,1.50917285]
[1764174502799,126.5784,137.88,137.74,8.85661754]
[1764174503004,6.5318,137.84,137.77,6.5347]
[1764174503498,6.5322,137.83,137.77,6.5347]
[1764174503705,0.05178349,137.82,137.79,0.0547572]
[1764174504105,6.5332,137.81,137.79,0.0547572]
[1764174504613,0.05178349,137.82,137.79,0.0547572]
[1764174506013,6.5332,137.81,137.79,0.0547572]
[1764174506401,0.05178349,137.82,137.79,0.0547572]
[1764174506603,6.5332,137.81,137.79,0.0547572]
[1764174510207,0.05178349,137.82,137.79,0.0547572]
[1764174511814,6.58448349,137.82,137.79,0.0547572]
[1764174513215,6.5331,137.81,137.79,0.0547572]
[1764174513907,6.5331,137.81,137.72,172.54561754]
[1764174514212,6.5336,137.8,137.72,62.0]
[1764174515112,0.04644773,137.77,137.75,0.04582957]
[1764174515308,0.04644773,137.77,137.75,6.58152957]
[1764174517812,101.6004,137.85,137.75,6.58152957]
[1764174517813,6.5321,137.84,137.78,6.5345]
[1764174518313,6.5322,137.83,137.74,101.6746]
[1764174518517,6.5322,137.83,137.77,6.5349]
[1764174518968,0.04772961,137.81,137.79,0.04978454]
[1764174525711,0.04772961,137.81,137.8,6.5336]
[1764174526933,0.04772961,137.81,137.79,6.58378454]
[1764174528529,0.04772961,137.81,137.8,6.5336]
[1764174528826,0.04772961,137.81,137.79,0.04978454]
[1764174530729,0.04772961,137.81,137.79,6.58378454]
[1764174533033,0.04772961,137.81,137.79,0.04978454]
[1764174535543,0.04772961,137.81,137.79,6.58378454]
[1764174536946,0.04772961,137.81,137.79,0.04978454]
[1764174546255,6.58082961,137.81,137.79,0.04978454]
[1764174546546,0.04772961,137.81,137.79,0.04978454]
[1764174548450,6.5336,137.8,137.79,0.04978454]
[1764174550362,0.04772961,137.81,137.79,0.04978454]
[1764174554960,2.94894912,137.8,137.79,0.04978454]
[1764174555156,2.94894912,137.8,137.72,8.85661754]
[1764174555361,2.94894912,137.78,137.71,11.80556666]
[1764174555563,6.5355,137.76,137.71,18.34316666]
[1764174555876,6.5355,137.76,137.71,8.85661754]
[1764174556061,6.5365,137.74,137.69,8.85661754]
[1764174556365,0.05381751,137.73,137.7,0.04759664]
[1764174564175,6.59081751,137.73,137.7,0.04759664]
[1764174567378,6.5374,137.72,137.7,0.04759664]
[1764174571777,0.05381751,137.73,137.7,0.04759664]
[1764174571778,6.5378,137.71,137.7,0.04759664]
[1764174571980,0.05381751,137.73,137.7,0.04759664]
[1764174572376,6.5378,137.71,137.7,0.04759664]
[1764174573281,2.94894912,137.72,137.64,6.5407]
[1764174573477,27.90894912,137.72,137.64,6.5407]
[1764174573781,6.5393,137.68,137.62,6.5417]
[1764174574081,2.94894912,137.7,137.61,27.90894912]
[1764174574379,0.05338428,137.66,137.61,27.90894912]
[1764174574580,0.05338428,137.66,137.63,2.94894912]
[1764174575679,0.05338428,137.66,137.63,9.49044912]
[1764174576186,0.05338428,137.66,137.63,64.94894912]
[1764174576477,0.05338428,137.66,137.62,2.94894912]
[1764174578384,0.05338428,137.66,137.62,9.49104912]
[1764174579573,0.05338428,137.66,137.62,71.49104912]
[1764174580181,0.05338428,137.66,137.64,2.94894912]
[1764174581284,0.05338428,137.66,137.64,6.5411]
[1764174582180,0.05338428,137.66,137.65,6.5407]
[1764174582787,0.05338428,137.66,137.61,126.7309]
[1764174582976,0.05338428,137.66,137.63,2.94894912]
[1764174583281,0.05338428,137.66,137.65,6.5407]
[1764174584673,0.05338428,137.66,137.61,24.96]
[1764174585386,2.94894912,137.74,137.64,104.69844912]
[1764174585571,24.96,137.76,137.66,2.94894912]
[1764174585885,2.94894912,137.74,137.66,2.94894912]
[1764174586183,27.90894912,137.75,137.66,2.94894912]
[1764174586385,0.05092076,137.72,137.69,0.04683452]
[1764174592391,6.58842076,137.72,137.69,0.04683452]
[1764174593495,6.5379,137.71,137.69,0.04683452]
[1764174598897,6.74678933,137.81,137.7,2.94894912]
[1764174599090,6.74678933,137.81,137.68,24.96]
[1764174599091,2.94894912,137.76,137.68,27.90894912]
[1764174599598,6.5366,137.74,137.68,27.90894912]
[1764174599992,0.04616526,137.72,137.7,0.04615368]
[1764174600290,0.04616526,137.72,137.7,2.9951028]
[1764174600488,0.04616526,137.72,137.7,0.04615368]
[1764174600888,0.04616526,137.72,137.7,6.58425368]
[1764174601192,2.94894912,137.81,137.71,2.94894912]
[1764174601396,2.94894912,137.79,137.71,2.94894912]
[1764174602188,0.0536209,137.76,137.74,0.04837956]
[1764174606006,2.94894912,137.74,137.66,8.85661754]
[1764174606211,2.94894912,137.74,137.65,27.90894912]
[1764174606413,2.94894912,137.72,137.65,27.90894912]
[1764174606609,101.6595,137.77,137.65,24.96]
[1764174606913,0.04706343,137.72,137.7,0.05262888]
[1764174607106,0.05269778,137.72,137.7,0.05262888]
[1764174608404,0.05269778,137.72,137.65,24.96]
[1764174609015,6.59049778,137.72,137.65,24.96]
[1764174609307,0.05269778,137.72,137.62,70.85661754]
[1764174609512,0.05311748,137.68,137.66,0.04946186]
[1764174609704,0.05206394,137.68,137.66,0.04946186]
[1764174610912,6.59146394,137.68,137.66,0.04946186]
[1764174613214,0.05206394,137.68,137.66,0.04946186]
[1764174613602,107.80958601,137.67,137.58,8.85661754]
[1764174613804,6.5408,137.65,137.57,8.85661754]
[1764174614015,6.5408,137.65,137.56,13.47260355]
[1764174614613,0.05237233,137.62,137.57,15.40101754]
[1764174614817,0.05237233,137.62,137.57,8.85661754]
[1764174615316,0.05237233,137.62,137.58,6.5439]
[1764174615817,0.05237233,137.62,137.59,6.5434]
[1764174616013,24.98,137.72,137.61,4.61598601]
[1764174616217,126.6761,137.72,137.61,4.61598601]
[1764174617019,0.04730673,137.68,137.65,0.05159]
[1764174619118,6.58670673,137.68,137.65,0.05159]
[1764174619313,0.04730673,137.68,137.65,0.05159]
[1764174626527,6.5398,137.67,137.65,0.05159]
[1764174627024,101.7309,137.67,137.58,33.83661754]
[1764174627216,6.5412,137.64,137.58,24.98]
[1764174628023,0.04644585,137.62,137.58,24.98]
[1764174628425,0.04644585,137.62,137.55,12.42567495]
[1764174628617,0.04644585,137.62,137.53,8.85661754]
[1764174628822,0.05279423,137.59,137.52,24.98]
[1764174629125,0.05279423,137.59,137.52,86.98]
[1764174629426,0.05279423,137.59,137.52,24.98]
[1764174629824,0.05279423,137.59,137.52,31.5268]
[1764174630029,0.05279423,137.59,137.52,24.98]
[1764174630328,0.05279423,137.59,137.52,29.59598601]
[1764174630727,0.05279423,137.59,137.53,6.5463]
[1764174631232,0.05279423,137.59,137.52,131.43318601]
[1764174631624,0.05279423,137.59,137.55,6.5454]
[1764174631823,0.05279423,137.59,137.52,24.98]
[1764174632023,0.05279423,137.59,137.49,13.47260355]
[1764174632335,0.04986531,137.55,137.5,62.0]
[1764174632719,0.04986531,137.55,137.48,1.26504053]
[1764174633532,6.5461,137.54,137.48,1.26504053]
[1764174633729,0.04986531,137.55,137.46,31.5293]
[1764174633932,0.05383226,137.52,137.46,32.79477755]
[1764174634329,0.05383226,137.52,137.46,24.98]
[1764174634733,0.05383226,137.52,137.47,101.8775]
[1764174634939,0.05383226,137.52,137.5,6.5477]
[1764174639826,0.05383226,137.52,137.48,68.5484]
[1764174640341,0.05383226,137.52,137.48,62.0]
[1764174640539,0.05383226,137.52,137.5,6.5476]
[1764174641444,0.05383226,137.52,137.48,62.0]
[1764174642236,0.05383226,137.52,137.46,126.8624]
[1764174642540,0.05383226,137.52,137.48,6.5486]
[1764174642939,0.05383226,137.52,137.47,101.8771]
[1764174643243,0.05383226,137.52,137.5,6.5477]
[1764174644141,0.05383226,137.52,137.47,101.8771]
[1764174644839,0.05383226,137.52,137.46,126.8616]
[1764174645044,0.05383226,137.52,137.47,163.8774]
[1764174645341,0.05383226,137.52,137.5,6.5477]
[1764174645745,0.05383226,137.52,137.47,62.0]
[1764174645935,12.27391573,137.51,137.38,101.9423]
[1764174646240,0.05215862,137.46,137.38,101.9423]
[1764174646544,0.05215862,137.46,137.37,6.5538]
[1764174646839,0.050716,137.43,137.36,101.9589]
[1764174647038,0.050716,137.43,137.38,6.5534]
[1764174647239,0.050716,137.43,137.36,101.9589]
[1764174647240,0.050716,137.43,137.37,101.9511]
[1764174647637,0.050716,137.43,137.36,101.9589]
[1764174648132,0.050716,137.43,137.39,6.5529]
[1764174648744,0.050716,137.43,137.4,6.5525]
[1764174649745,0.050716,137.43,137.37,101.9491]
[1764174650142,0.050716,137.43,137.38,101.9432]
[1764174650445,0.050716,137.43,137.4,6.5525]
[1764174650744,0.050716,137.43,137.36,163.9589]
[1764174651140,0.050716,137.43,137.36,62.0]
[1764174651540,0.050716,137.43,137.34,126.9943]
[1764174651743,0.04684013,137.4,137.36,101.9579]
[1764174651940,0.04580108,137.39,137.36,101.9579]
[1764174652137,0.04580108,137.39,137.26,291.0]
[1764174652138,0.05361307,137.39,137.26,102.0308]
[1764174652347,0.05266715,137.34,137.31,6.5565]
[1764174652538,0.05266715,137.34,137.26,102.0339]
[1764174652539,0.0556507,137.34,137.26,103.30103638]
[1764174652741,0.0556507,137.34,137.24,127.1451]
[1764174652939,0.04923962,137.3,137.26,102.0304]
[1764174653139,0.05053486,137.29,137.26,102.0304]
[1764174653449,0.05421556,137.29,137.27,6.5585]
[1764174653948,12.27391573,137.39,137.3,6.5569]
[1764174654338,114.21751573,137.39,137.23,102.0526]
[1764174654537,114.21751573,137.39,137.24,164.0476]
[1764174654742,114.21751573,137.39,137.3,0.05031177]
[1764174654941,114.21751573,137.39,137.24,165.31496712]
[1764174654942,0.05185597,137.36,137.26,6.559]
[1764174655144,6.5538,137.38,137.3,0.04917325]
[1764174655342,0.04908238,137.35,137.3,0.04917325]
[1764174660946,0.04908238,137.35,137.3,6.60627325]
[1764174662943,0.04908238,137.35,137.3,0.04917325]
[1764174663550,6.5561,137.33,137.3,0.04917325]
[1764174663756,102.01958238,137.35,137.3,0.04917325]
[1764174664052,102.0209,137.28,137.15,102.114]
[1764174664253,102.0571,137.23,137.07,114.44871573]
[1764174664453,102.0571,137.23,137.0,327.81193327]
[1764174664454,6.5642,137.16,137.02,557.32169822]
[1764174664654,102.1085,137.16,137.02,455.11289822]
[1764174664862,102.1108,137.16,137.02,455.11289822]
[1764174665053,0.04980205,137.1,137.02,461.68339822]
[1764174665356,0.04980205,137.1,137.08,102.1677]
[1764174665548,25.22,137.22,137.07,139.66771573]
[1764174665748,127.2871,137.22,137.07,139.66661573]
[1764174666155,127.2871,137.22,137.06,102.1803]
[1764174666455,0.0482551,137.15,137.13,0.05396088]
[1764174666658,0.05586349,137.15,137.13,0.04956533]
[1764174667056,1.46,137.14,137.04,164.1959]
[1764174667366,114.35681573,137.2,137.06,102.182]
[1764174667560,25.24,137.18,137.06,102.182]
[1764174668058,0.05246399,137.13,137.06,102.182]
[1764174668646,0.05246399,137.13,137.08,6.5676]
[1764174669263,0.05246399,137.13,137.06,6.5688]
[1764174669953,0.05246399,137.13,137.07,6.5681]
[1764174670149,0.05246399,137.13,137.07,102.1725]
[1764174670355,0.05246399,137.13,137.09,102.1598]
[1764174670749,0.05246399,137.13,137.11,6.5662]
[1764174671866,0.05246399,137.13,137.11,108.711]
[1764174672448,6.5607,137.23,137.1,102.1501]
[1764174672647,6.5607,137.23,137.11,102.1455]
[1764174673164,6.5607,137.23,137.13,6.5652]
[1764174673352,0.05188296,137.19,137.17,0.04609496]
[1764174673554,0.04864783,137.19,137.17,0.04609496]
[1764174673757,1.50864783,137.19,137.08,7.09223861]
[1764174673957,102.1191,137.15,137.02,557.32429822]
[1764174674256,102.1235,137.14,137.02,455.11289822]
[1764174674455,6.5658,137.13,137.02,455.11289822]
[1764174674659,7.09223861,137.15,137.02,455.11289822]
[1764174674853,0.05270419,137.1,137.04,102.1972]
[1764174675059,0.05270419,137.1,137.05,102.1867]
[1764174675259,0.05270419,137.1,137.06,102.1814]
[1764174675453,0.05270419,137.1,137.08,6.5676]
[1764174675653,6.5618,137.21,137.08,127.51428997]
[1764174675854,6.5618,137.21,137.08,127.4674]
[1764174676053,6.5618,137.21,137.09,102.1603]
[1764174676249,7.09223861,137.26,137.13,102.1303]
[1764174676454,134.44043861,137.27,137.13,109.22253861]
[1764174676661,0.05218664,137.21,137.19,0.04635297]
[1764174676863,0.04935419,137.21,137.19,0.04635297]
[1764174678864,102.1085,137.16,137.02,462.20513683]
[1764174679051,102.1388,137.12,137.02,455.11289822]
[1764174679250,25.32,137.13,137.02,455.11289822]
[1764174679655,0.04953478,137.09,137.06,0.02017182]
[1764174680068,0.04953478,137.09,137.06,1.48017182]
[1764174680262,102.0741,137.21,137.06,1.48017182]
[1764174680263,18.6224,137.2,137.08,6.5677]
[1764174680661,6.5624,137.2,137.07,109.26373861]
[1764174681154,0.04659295,137.15,137.07,109.26373861]
[1764174681359,0.04659295,137.15,137.12,0.05165367]
[1764174684470,0.04659295,137.15,137.12,6.61745367]
[1764174684867,0.04659295,137.15,137.12,0.05165367]
[1764174685059,102.16639295,137.15,137.06,7.09223861]
[1764174685369,6.5672,137.1,137.0,13.66373861]
[1764174685568,102.1609,137.09,137.0,7.09223861]
[1764174685769,102.1535,137.1,137.0,7.09223861]
[1764174685964,7.09223861,137.14,137.0,109.31383861]
[1764174686170,0.05204065,137.08,137.03,109.29143861]
[1764174686366,0.05559296,137.07,137.04,102.1976]
[1764174686671,6.5648,137.15,137.07,6.5682]
[1764174686871,0.05321187,137.12,137.07,6.5682]
[1764174687174,0.05321187,137.12,137.05,6.569]
[1764174687366,0.05321187,137.12,137.04,102.1976]
[1764174687763,0.05321187,137.12,137.08,6.5677]
[1764174690364,0.05321187,137.12,137.08,102.167]
[1764174690775,0.05321187,137.12,137.1,6.5668]
[1764174691476,0.05321187,137.12,137.1,31.9268]
[1764174693575,1.26882269,137.24,137.15,6.5644]
[1764174693775,5.15331599,137.27,137.15,62.0]
[1764174693981,5.15283773,137.28,137.15,164.112]
[1764174694182,6.5585,137.28,137.16,7.09223861]
[1764174694382,5.15691764,137.29,137.17,102.0985]
[1764174694678,0.05361044,137.24,137.22,0.05452143]
[1764174694880,0.04623163,137.24,137.22,0.05452143]
[1764174696280,13.64783861,137.34,137.22,0.05452143]
[1764174696481,13.64783861,137.34,137.21,25.36]
[1764174697276,0.05256847,137.29,137.26,0.05340747]
[1764174699084,0.05256847,137.29,137.26,102.08440747]
[1764174699384,0.05256847,137.29,137.27,6.5586]
[1764174699776,12.26152557,137.4,137.27,102.026]
[1764174699977,12.26152557,137.4,137.3,6.5571]
[1764174700289,26.48896177,137.41,137.3,6.5571]
[1764174700486,21.31967481,137.41,137.3,6.5571]
[1764174700684,0.04606666,137.37,137.34,0.05294679]
[1764174702286,0.04606666,137.37,137.26,32.43223861]
[1764174702479,5.16928696,137.39,137.26,32.43223861]
[1764174702680,6.5543,137.37,137.27,62.0]
[1764174703390,0.05516177,137.33,137.31,0.04847948]
[1764174707779,20.24795,137.4,137.31,0.04847948]
[1764174707986,20.24795,137.4,137.29,7.09223861]
[1764174708499,20.24795,137.4,137.31,6.5567]
[1764174708700,20.24795,137.4,137.29,109.10053861]
[1764174708990,0.0480905,137.36,137.33,0.04721659]
[1764174709193,9.32425,137.4,137.37,101.9509]
[1764174709398,6.5427,137.61,137.47,101.8777]
[1764174709585,108.89193861,137.58,137.44,7.09223861]
[1764174709897,101.7907,137.59,137.45,108.98473861]
[1764174710095,0.05354278,137.53,137.51,0.05436313]
[1764174710299,0.05354278,137.53,137.51,0.0526239]
[1764174710300,0.05306349,137.53,137.51,0.0526239]
[1764174710596,6.59956349,137.53,137.51,0.0526239]
[1764174711196,1.46,137.52,137.51,0.0526239]
[1764174713598,6.5477,137.51,137.4,31.8924]
[1764174714607,0.05449923,137.47,137.44,0.04640931]
[1764174721705,6.60399923,137.47,137.44,0.04640931]
[1764174723009,0.05449923,137.47,137.44,0.04640931]
[1764174728909,101.8869,137.46,137.33,101.9781]
[1764174729215,101.8869,137.46,137.34,25.28]
[1764174729415,6.5509,137.44,137.35,6.5548]
[1764174729611,6.5509,137.44,137.34,25.28]
[1764174729926,101.8669,137.49,137.34,127.2516]
[1764174730109,25.28,137.48,137.37,6.5538]
[1764174730309,0.05523271,137.44,137.41,0.05049688]
[1764174737315,6.60603271,137.44,137.41,0.05049688]
[1764174738211,0.05523271,137.44,137.41,0.05049688]
[1764174739120,0.05523271,137.44,137.41,6.60249688]
[1764174740121,101.8293,137.54,137.42,101.9144]
[1764174740322,5.12900171,137.53,137.4,101.9279]
[1764174740522,6.5479,137.5,137.43,6.5511]
[1764174740818,5.12900171,137.53,137.43,6.5511]
[1764174741014,106.96560171,137.53,137.43,6.5511]
[1764174741210,0.04899126,137.49,137.47,0.05595531]
[1764174747822,0.04899126,137.49,137.47,6.60515531]
[1764174750827,6.74678933,137.61,137.47,13.80803801]
[1764174751026,4.98664818,137.63,137.52,101.8397]
[1764174751232,11.70256994,137.62,137.52,25.24]
[1764174751529,6.5423,137.62,137.52,25.24]
[1764174751731,5.16066962,137.61,137.52,25.24]
[1764174752032,0.05313865,137.58,137.55,0.04684516]
[1764174755030,0.05313865,137.58,137.55,6.59214516]
[1764174756630,0.05313865,137.58,137.56,6.5448]
[1764174757139,0.05313865,137.58,137.55,0.04684516]
[1764174757740,0.05313865,137.58,137.55,6.59214516]
[1764174758234,0.05313865,137.58,137.56,6.5448]
[1764174758441,101.6712,137.75,137.62,101.7669]
[1764174758739,111.78387938,137.75,137.62,126.9869]
[1764174758939,101.7381,137.66,137.53,101.83]
[1764174759238,101.7381,137.66,137.52,101.8406]
[1764174759433,0.04645691,137.6,137.58,0.04830707]
[1764174759736,0.05551395,137.6,137.58,0.05513648]
[1764174759944,0.05551395,137.6,137.58,6.59893648]
[1764174761438,0.05551395,137.6,137.58,0.05513648]
[1764174762340,0.05551395,137.6,137.58,6.59903648]
[1764174765245,0.05551395,137.6,137.58,0.05513648]
[1764174766541,0.05551395,137.6,137.58,6.59903648]
[1764174780856,0.05551395,137.6,137.59,25.2]
[1764174783760,12.2920827,137.75,137.63,101.7537]
[1764174783953,6.5369,137.73,137.64,126.9467]
[1764174784154,101.6597,137.77,137.66,101.7365]
[1764174784862,0.05010072,137.73,137.7,0.05084734]
[1764174785657,0.05010072,137.73,137.7,6.58914734]
[1764174786348,0.05010072,137.73,137.71,6.5377]
[1764174786661,0.05010072,137.73,137.7,0.05084734]
[1764174786855,1.51010072,137.73,137.7,0.05084734]
[1764174787049,1.51010072,137.73,137.61,101.771]
[1764174787253,123.13736945,137.77,137.63,101.7588]
[1764174787254,21.47706945,137.77,137.63,101.7588]
[1764174787458,108.40608933,137.77,137.66,6.54]
[1764174787651,130.61924167,137.77,137.63,101.7588]
[1764174787861,123.87245234,137.77,137.65,101.7415]
[1764174788048,0.04645592,137.72,137.7,0.05268327]
[1764174788248,0.04754085,137.72,137.7,0.05268327]
[1764174789460,1.50754085,137.72,137.7,0.05268327]
[1764174789653,1.50754085,137.72,137.6,25.18]
[1764174789858,113.9734827,137.74,137.6,25.18]
[1764174790050,6.538,137.71,137.6,25.18]
[1764174790251,12.2920827,137.74,137.62,101.7664]
[1764174790457,6.74678933,137.78,137.65,101.7445]
[1764174790657,0.05339296,137.73,137.7,0.05073847]
[1764174791961,0.05339296,137.73,137.7,6.58893847]
[1764174792156,0.05339296,137.73,137.7,0.05073847]
[1764174792862,0.05339296,137.73,137.7,6.58903847]
[1764174793166,0.05339296,137.73,137.7,0.05073847]
[1764174793852,1.51339296,137.73,137.7,0.05073847]
[1764174794254,103.20309296,137.73,137.62,6.5417]
[1764174794468,101.694,137.72,137.62,6.5417]
[1764174794663,9.49567854,137.67,137.59,6.5434]
[1764174794965,2.95587854,137.65,137.55,2.95587854]
[1764174795166,9.49677854,137.65,137.56,6.5448]
[1764174795468,0.05586516,137.62,137.59,0.04898824]
[1764174800873,6.59816516,137.62,137.59,0.04898824]
[1764174801270,0.05586516,137.62,137.59,0.04898824]
[1764174811280,6.59806516,137.62,137.59,0.04898824]
[1764174811471,0.05586516,137.62,137.59,0.04898824]
[1764174813388,6.5426,137.61,137.59,0.04898824]
[1764174813586,0.05586516,137.62,137.59,0.04898824]
[1764174814881,6.5428,137.61,137.59,0.04898824]
[1764174815082,0.05586516,137.62,137.59,0.04898824]
[1764174815882,6.59806516,137.62,137.59,0.04898824]
[1764174816487,0.05586516,137.62,137.59,0.04898824]
[1764174816689,6.5428,137.61,137.59,0.04898824]
[1764174816892,104.74640927,137.6,137.5,2.95780927]
[1764174817284,2.95780927,137.6,137.52,2.95780927]
[1764174817792,0.05099884,137.57,137.55,0.04782777]
[1764174818488,0.05099884,137.57,137.56,2.95780927]
[1764174819890,0.05099884,137.57,137.55,0.04782777]
[1764174821593,3.00880811,137.57,137.55,0.04782777]
[1764174823693,9.55340811,137.57,137.48,2.95780927]
[1764174823903,9.50240927,137.57,137.48,2.95780927]
[1764174824406,6.5451,137.56,137.49,6.5481]
[1764174824589,2.95780927,137.55,137.49,6.5481]
[1764174824897,0.0467937,137.53,137.51,0.05196944]
[1764174825496,0.0467937,137.53,137.51,6.59916944]
[1764174825999,0.0467937,137.53,137.51,0.05196944]
[1764174830499,2.95780927,137.52,137.51,0.05196944]
[1764174831097,101.8486,137.51,137.38,110.70311494]
[1764174831302,2.95780927,137.48,137.38,2.95780927]
[1764174831604,9.50700927,137.48,137.4,6.5524]
[1764174831805,2.95780927,137.48,137.4,2.95780927]
[1764174832097,0.04602317,137.45,137.43,0.02982177]
[1764174833101,6.59632317,137.45,137.43,0.02982177]
[1764174833402,2.95780927,137.44,137.43,0.02982177]
[1764174834108,0.04602317,137.45,137.43,0.02982177]
[1764174842401,6.59632317,137.45,137.43,0.02982177]
[1764174842804,0.04602317,137.45,137.43,0.02982177]
[1764174843307,101.9078,137.43,137.31,62.0]
[1764174843514,101.9229,137.41,137.32,2.95780927]
[1764174843708,2.95780927,137.4,137.32,2.95780927]
[1764174844015,2.95780927,137.4,137.32,9.51420927]
[1764174844516,0.05308682,137.37,137.36,2.95780927]
[1764174844715,0.04837734,137.38,137.36,2.95780927]
[1764174845013,0.05148074,137.38,137.36,2.95780927]
[1764174845211,2.95780927,137.47,137.36,2.95780927]
[1764174845416,2.95780927,137.47,137.39,2.95780927]
[1764174846207,0.0475722,137.44,137.42,0.04881037]
[1764174847217,6.5983722,137.44,137.42,0.04881037]
[1764174847621,0.0475722,137.44,137.42,0.04881037]
[1764174849811,6.5982722,137.44,137.42,0.04881037]
[1764174850413,0.0475722,137.44,137.42,0.04881037]
[1764174851419,6.5983722,137.44,137.42,0.04881037]
[1764174854618,0.0475722,137.44,137.42,0.04881037]
[1764174855021,0.0475722,137.44,137.34,106.60469197]
[1764174855022,101.9306,137.4,137.27,102.0228]
[1764174855205,25.26,137.39,137.28,4.63419197]
[1764174855410,127.2011,137.39,137.28,4.63419197]
[1764174855719,101.946,137.38,137.28,4.63419197]
[1764174855918,6.5544,137.37,137.28,4.63419197]
[1764174856113,0.0555822,137.34,137.31,4.63419197]
[1764174856416,0.05058371,137.34,137.31,4.63419197]
[1764174856815,0.05058371,137.34,137.32,6.5563]
[1764174857117,0.05058371,137.34,137.32,8.0163]
[1764174857319,6.5527,137.4,137.32,1.46]
[1764174857619,6.5527,137.4,137.34,6.555]
[1764174858213,0.05283359,137.38,137.36,0.05325408]
[1764174862424,25.24,137.48,137.36,103.47015408]
[1764174862624,25.24,137.48,137.36,101.9569]
[1764174863525,0.04691956,137.43,137.41,0.05047676]
[1764174863724,0.05537811,137.43,137.41,0.05047676]
[1764174863915,127.1567,137.42,137.29,37.54010549]
[1764174864118,101.9237,137.41,137.29,25.24]
[1764174864318,101.9227,137.41,137.29,25.24]
[1764174864516,25.26,137.4,137.29,25.24]
[1764174864717,114.20330549,137.44,137.3,102.0023]
[1764174864917,0.05340479,137.38,137.36,0.04891909]
[1764174865119,0.04749261,137.38,137.36,0.04891909]
[1764174866423,0.04749261,137.38,137.36,6.60331909]
[1764174867627,6.5502,137.46,137.39,6.553]
[1764174868423,6.5503,137.45,137.39,6.553]
[1764174868726,0.05291462,137.43,137.41,0.047135]
[1764174875536,0.05291462,137.43,137.41,6.599135]
[1764174880539,0.05291462,137.43,137.41,11.22921353]
[1764174880932,6.5479,137.5,137.45,6.5499]
[1764174881236,4.63007853,137.54,137.42,101.9128]
[1764174881837,108.52700179,137.57,137.47,6.5492]
[1764174882035,0.05556731,137.53,137.51,0.04887356]
[1764174882237,0.05556731,137.53,137.51,0.05095211]
[1764174884736,0.05556731,137.53,137.51,6.59825211]
[1764174885737,0.05556731,137.53,137.51,0.05095211]
[1764174886442,0.05556731,137.53,137.51,6.59825211]
[1764174887951,4.63007853,137.63,137.56,6.5447]
[1764174888450,4.63007853,137.63,137.54,6.5456]
[1764174888852,0.05105326,137.6,137.57,0.05266868]
[1764174896348,0.05105326,137.6,137.57,6.59706868]
[1764174896544,0.05105326,137.6,137.57,0.05266868]
[1764174896946,0.05105326,137.6,137.58,6.5439]
[1764174897749,0.05105326,137.6,137.57,0.05266868]
[1764174898349,6.5436,137.59,137.57,0.05266868]
[1764174898848,0.05105326,137.6,137.57,0.05266868]
[1764174899452,6.59415326,137.6,137.57,0.05266868]
[1764174900453,6.5437,137.59,137.57,0.05266868]
[1764174901355,0.05105326,137.6,137.58,4.63007853]
[1764174901557,0.05105326,137.6,137.57,0.05266868]
[1764174903763,0.05105326,137.6,137.57,6.59696868]
[1764174904361,0.05105326,137.6,137.58,6.5439]
[1764174905357,0.05105326,137.6,137.57,0.05266868]
[1764174909966,0.05105326,137.6,137.58,6.544]
[1764174912075,4.63007853,137.67,137.6,6.543]